Cogmind - Beta 11.1 @@@ ROGUE MODE // 2022.07.10 @ 10:33:33 Player: maxwell Result: Self-destructed Performance ------------- Evolutions (6) 3000 Regions Visited (28) 5600 Robots Destroyed (237) 1185 Value Destroyed (9835) 9835 Prototype IDs (28) 560 Alien Tech Used (0) 0 Bonus (2891) 2891 TOTAL SCORE: 23071 Bonus ------- High Alert Combat Kills 776 Follower Combat Kills 4883 Network Hubs Disabled 200 Met Data Miner 300 Met Warlord at Base 500 MAIN.C Attacked Warlord 500 Warlord Defense Kills 220 Built Enhanced Grunts 300 A7 Reached Mainframe 300 Friendly Fire -5088 Cogmind --------- Core Integrity 887/1150 Matter 15/300 Energy 100/100 System Corruption 6% Temperature Cool (2) Movement Core (1700) Ox33 Location -4/Hub_04(d) Parts ------- > --- POWER (2) -------- (None) > --- PROPULSION (6) --- (None) > --- UTILITY (8) ------ Experimental Coolant Injector Huge Storage Unit Advanced Signal Interpreter Advanced Terrain Scan Processor Graphene Brace Dynamic Insulation System > --- WEAPON (3) ------- Advanced KE Penetrator Advanced KE Penetrator Helical Railgun > --- INVENTORY (25) --- Improved Treads Matter Compressor (45) Advanced Sensor Array Long-range Sensor Array Long-range Sensor Array Advanced Terrain Scanner Improved Kinecellerator Advanced Transmission Jammer Advanced Remote Shield Improved Trap Extractor (6/6 Fire) Neutron Cannon Heavy Battle Rifle Heavy Battle Rifle Hypervelocity Gauss Rifle Railgun Railgun Railgun Heavy Rocket Launcher Peak State ------------ > --- POWER ------------ Neutrino Core Light Antimatter Reactor > --- PROPULSION ------- Improved Treads Improved Treads Improved Treads Improved Treads Centrium Heavy Treads > --- UTILITY ---------- Huge Storage Unit Experimental Sensor Array Advanced Signal Interpreter Advanced Terrain Scan Processor Experimental Targeting Computer Experimental Core Analyzer Experimental Armor Integrity Analyzer Advanced Remote Shield > --- WEAPON ----------- Railgun Advanced KE Penetrator Helical Railgun > --- INVENTORY -------- Improved Treads Improved Treads Improved Treads Experimental Coolant Injector Matter Compressor Advanced Sensor Array Advanced Terrain Scanner Improved Kinecellerator Damper Plating Graphene Brace Dynamic Insulation System System Restoration Module Improved Trap Extractor Neutron Cannon Heavy Battle Rifle Heavy Battle Rifle Heavy Battle Rifle Hypervelocity Gauss Rifle KE Penetrator Advanced KE Penetrator Helical Railgun Heavy Rocket Launcher [Rating: 130] Favorites ----------- Power Reinforced Deuterium Engine Engine Reinforced Deuterium Engine Power Core Nuclear Core Reactor Antimatter Reactor Propulsion Advanced Treads Treads Advanced Treads Leg Experimental Myomer Leg Utility Huge Storage Unit Device Makeshift Sensor Array Storage Huge Storage Unit Processor Improved Signal Interpreter Hackware System Shield Protection Heavy Armor Plating Weapon Heavy Battle Rifle Energy Gun Heavy Beamcaster Energy Cannon Heavy Plasma Cannon Ballistic Gun Heavy Battle Rifle Launcher Grenade Launcher Impact Weapon Impact Mace Slashing Weapon Axe Build | -11 -10 -10 -10 -9 -8 -8 -7 -7 -7 -7 -7 -7 -6 -6 -6 -6 -6 -5 -5 -5 -5 -5 -4 -4 -4 -4 -4 -4 ------- Run | Scr Mat Min Exi Min Mat Sto Fac Was Fac Low Low Zio Pro Fac Low Low Dat Pro Fac Upp Upp War Pro Fac Ext Cet Arc Hub Slots Evolved 12 | . . . . . 4 . 2 . . . . . . 2 . . . . 2 . . . . 2 . . . . Power 1 | . . . . . . . . . . . . . . . . . . . . . . . . 1 . . . . Propulsion 4 | . . . . . 2 . . . . . . . . 2 . . . . . . . . . . . . . . Utility 6 | . . . . . 1 . 2 . . . . . . . . . . . 2 . . . . 1 . . . . Weapon 1 | . . . . . 1 . . . . . . . . . . . . . . . . . . . . . . . Parts Attached 269 | 6 9 3 2 4 23 5 2 8 13 2 13 7 . 6 12 19 . 16 17 8 17 19 3 11 18 4 4 18 Power 22 | 1 2 . . . 2 . . . 1 . 1 . . . 2 . . . 1 . 2 2 . 1 6 . . 1 Engine 9 | 1 2 . . . 1 . . . . . . . . . 2 . . . . . 1 1 . 1 . . . . Core 6 | . . . . . 1 . . . . . 1 . . . . . . . 1 . 1 . . . 2 . . . Reactor 7 | . . . . . . . . . 1 . . . . . . . . . . . . 1 . . 4 . . 1 Propulsion 48 | 2 1 . . 1 5 1 . 1 1 1 2 . . 2 . 2 . 2 3 3 4 3 . . 9 1 . 4 Treads 46 | 2 1 . . 1 5 1 . 1 1 1 2 . . 2 . 2 . 2 3 3 4 1 . . 9 1 . 4 Leg 2 | . . . . . . . . . . . . . . . . . . . . . . 2 . . . . . . Wheel . | . . . . . . . . . . . . . . . . . . . . . . . . . . . . . Hover . | . . . . . . . . . . . . . . . . . . . . . . . . . . . . . Flight . | . . . . . . . . . . . . . . . . . . . . . . . . . . . . . Utility 100 | 1 3 1 1 . 8 . 2 3 2 1 1 2 . 3 6 12 . 7 7 2 4 10 . 10 1 . 4 9 Device 76 | . 1 . . . 5 . 1 3 1 1 . 2 . 2 6 11 . 6 5 2 3 7 . 7 1 . 4 8 Storage 6 | 1 2 . 1 . 1 . . . . . . . . . . . . . . . . . . 1 . . . . Processor 12 | . . . . . 2 . 1 . 1 . . . . 1 . . . 1 1 . . 3 . 2 . . . . Hackware 1 | . . . . . . . . . . . . . . . . 1 . . . . . . . . . . . . Protection 5 | . . 1 . . . . . . . . 1 . . . . . . . 1 . 1 . . . . . . 1 Artifact . | . . . . . . . . . . . . . . . . . . . . . . . . . . . . . Weapon 99 | 2 3 2 1 3 8 4 . 4 9 . 9 5 . 1 4 5 . 7 6 3 7 4 3 . 2 3 . 4 Energy Gun 10 | 2 3 . . . 3 . . . . . . 1 . . . . . . . . . . . . . 1 . . Energy Cannon 2 | . . . . . . . . . . . . . . . . . . . . . 1 1 . . . . . . Ballistic Gun 57 | . . 1 1 2 2 2 . 2 6 . 4 3 . 1 2 3 . 4 5 2 4 3 2 . 2 2 . 4 Ballistic Cannon . | . . . . . . . . . . . . . . . . . . . . . . . . . . . . . Launcher 17 | . . 1 . 1 3 . . 2 1 . 3 . . . . . . 2 . 1 2 . 1 . . . . . Special Weapon . | . . . . . . . . . . . . . . . . . . . . . . . . . . . . . Impact Weapon 10 | . . . . . . . . . 1 . 2 1 . . 2 2 . 1 1 . . . . . . . . . Slashing Weapon 3 | . . . . . . 2 . . 1 . . . . . . . . . . . . . . . . . . . Piercing Weapon . | . . . . . . . . . . . . . . . . . . . . . . . . . . . . . Special Melee Weapon . | . . . . . . . . . . . . . . . . . . . . . . . . . . . . . Unidentified Prototypes 17 | . . . . . 3 . . 1 1 . . . . . 1 . . . . . . 7 1 . . 3 . . Corrupted Parts 5 | . . . . . . . . . . . . . . . . . . . . . . 1 2 . . 2 . . System Corruption 22 | . . . . . . . . . . . . . . . . . . . . . . 10 7 . . 5 . . Parts Lost 54 | . 3 . . 2 2 . . . 2 2 4 . . . . 1 . 5 1 4 11 1 1 . 1 . . 14 Power 7 | . 1 . . . . . . . . . . . . . . . . . 1 . 1 1 . . . . . 3 Propulsion 24 | . 1 . . 1 2 . . . . 1 3 . . . . . . 3 . 1 5 . . . 1 . . 6 Utility 11 | . . . . . . . . . 1 1 1 . . . . . . 1 . 2 1 . 1 . . . . 3 Weapon 12 | . 1 . . 1 . . . . 1 . . . . . . 1 . 1 . 1 4 . . . . . . 2 Highest Loss Streak 11 | . 1 . . 2 1 . . . 1 2 3 . . . . 1 . 2 1 3 6 1 1 . 1 . . 11 To Critical Strikes . | . . . . . . . . . . . . . . . . . . . . . . . . . . . . . Average Slot Usage (%) 91 | . 96 99 100 99 99 100 100 99 99 95 86 84 84 86 87 89 93 86 86 91 80 83 99 100 99 94 94 87 Engine 4 | . 14 14 14 14 4 9 7 7 5 . . . . . 5 6 6 6 4 . 3 4 . 5 . . . . Core 1 | . . . . . 4 . . . . . 1 7 7 6 . . . . . 5 1 . . . 5 5 5 4 Reactor 1 | . . . . . . . . . 1 7 5 . . . . . . . . . . . 5 5 3 5 5 4 Treads 28 | . 27 28 28 28 35 36 30 30 30 29 24 23 23 33 33 32 33 27 22 27 20 23 29 26 30 26 26 23 Device 12 | . 11 4 . . 9 9 15 14 16 10 13 7 7 6 12 15 20 21 18 19 18 18 10 12 10 10 10 13 Storage 7 | . 14 14 14 14 9 9 7 7 7 7 7 7 7 6 6 6 6 6 5 5 5 5 5 5 5 5 5 5 Processor 9 | . . . . . 8 9 15 15 13 15 8 7 7 6 6 6 6 3 10 11 11 14 23 23 26 26 26 18 Protection 2 | . . 9 14 14 . . . . . . 1 7 7 6 . . . . 2 1 3 . . . . . . . Energy Gun 1 | . 27 8 . . . . . . . . . 2 7 1 . . . . . . . . . . . 1 . . Ballistic Gun 17 | . . 9 28 27 24 25 15 22 22 23 22 19 15 18 16 16 13 17 14 16 10 5 13 15 15 13 15 15 Naked Turns . | . . . . . . . . . . . . . . . . . . . . . . . . . . . . . Heaviest Build 172 | 12 30 33 51 52 101 103 104 105 116 112 117 120 120 120 121 118 113 124 124 115 123 123 115 122 136 135 133 172 Greatest Support 186 | 40 40 40 40 40 82 82 82 84 84 84 112 112 112 154 154 157 157 158 186 186 181 125 125 125 148 172 172 172 Greatest Overweight (x) 1 | . . . 1 1 1 1 1 1 1 1 1 1 1 . . . . 1 . . 1 1 . . 1 . . 1 Average Overweight (x) . | . . . . 1 . 1 1 1 1 1 . . 1 . . . . . . . . . . . . . . . Largest Inventory Capacity 25 | 8 15 15 20 20 25 25 25 25 25 25 25 25 25 25 25 25 25 25 25 25 25 25 25 25 25 25 25 25 Average Capacity 23 | 7 12 15 16 20 20 25 25 25 25 25 25 25 25 25 25 25 25 25 25 25 25 25 25 25 25 25 25 25 Most Carried 25 | 2 13 14 15 19 22 25 25 25 25 25 25 25 25 25 25 25 25 25 25 24 22 25 25 24 25 25 25 25 Average Carried 21 | . 9 12 13 15 17 24 23 24 24 23 23 25 25 24 24 24 25 23 23 21 17 24 25 22 24 24 24 23 Final Capacity 25 | 8 15 15 20 20 25 25 25 25 25 25 25 25 25 25 25 25 25 25 25 25 25 25 25 25 25 25 25 25 Final Carried 25 | 2 13 12 13 19 22 25 25 25 23 24 25 25 25 25 25 25 25 20 24 20 22 25 25 23 25 24 25 18 Class Distribution -------------------- 31% | Scavenger-Skirmisher 20% | Mutant 11% | Scavenger-Gunner 10% | Scavenger-Mutant 8% | Derelict-Skirmisher 5% | Skirmisher 5% | Commander-Skirmisher 5% | Scavenger-Assassin Dominant Class ---------------- Mutant | -10/Materials Mutant | -10/Mines Mutant | -10/Exiles Mutant | -9/Mines Scavenger-Skirmisher | -8/Materials Skirmisher | -8/Storage Commander-Assassin | -7/Factory Commander-Skirmisher | -7/Waste Skirmisher | -7/Factory Scavenger-Skirmisher | -7/Lower Caves Scavenger-Skirmisher | -7/Lower Caves Scavenger-Skirmisher | -7/Zion Derelict-Skirmisher | -6/Proximity Caves Derelict-Skirmisher | -6/Factory Scavenger-Mutant | -6/Lower Caves Scavenger-Skirmisher | -6/Lower Caves Scavenger-Assassin | -6/Data Miner Scavenger-Skirmisher | -5/Proximity Caves Scavenger-Gunner | -5/Factory Scavenger-Gunner | -5/Upper Caves Mutant | -5/Upper Caves Mutant | -5/Warlord Scavenger-Mutant | -4/Proximity Caves Scavenger-Mutant | -4/Factory Scavenger-Skirmisher | -4/Extension Scavenger-Gunner | -4/Cetus Scavenger-Gunner | -4/Archives Scavenger-Skirmisher | -4/Hub_04(d) Resources | -11 -10 -10 -10 -9 -8 -8 -7 -7 -7 -7 -7 -7 -6 -6 -6 -6 -6 -5 -5 -5 -5 -5 -4 -4 -4 -4 -4 -4 ----------- Run | Scr Mat Min Exi Min Mat Sto Fac Was Fac Low Low Zio Pro Fac Low Low Dat Pro Fac Upp Upp War Pro Fac Ext Cet Arc Hub Matter Collected 11495 | 142 258 57 . 249 847 238 . 414 531 185 472 55 58 175 1287 1421 . 1141 850 421 920 341 146 37 562 167 118 403 Remotely 187 | . . . . . . . . . . . . . . . . . . . . . 187 . . . . . . . Salvage Created 10919 | . 430 . . 66 969 397 . 654 791 118 741 . 38 137 669 883 . 662 1081 424 661 80 222 37 749 96 101 913 Parts 458 | . 27 . . 4 62 22 . 10 35 1 34 . 1 11 17 20 . 23 45 10 29 4 2 2 35 5 6 53 Haulers Intercepted 7 | . 1 . . . 1 3 . . . . . . . . . . . . 1 . . . . . . . . 1 Recyclers Shooed 6 | . . 1 . . 1 1 . . . . . . . . . . . . . . . . . . 2 . . 1 Parts Field Recycled . | . . . . . . . . . . . . . . . . . . . . . . . . . . . . . Retrieved Matter . | . . . . . . . . . . . . . . . . . . . . . . . . . . . . . Parts Self-Destructed 255 | . . . . . . . . . . 8 30 2 1 . 19 17 . 33 . 9 35 100 1 . . . . . Prevented 10 | . . . . . . . . . . 3 1 . . . . . . . . . . 6 . . . . . . Kills | -11 -10 -10 -10 -9 -8 -8 -7 -7 -7 -7 -7 -7 -6 -6 -6 -6 -6 -5 -5 -5 -5 -5 -4 -4 -4 -4 -4 -4 ------- Run | Scr Mat Min Exi Min Mat Sto Fac Was Fac Low Low Zio Pro Fac Low Low Dat Pro Fac Upp Upp War Pro Fac Ext Cet Arc Hub Combat Hostiles Destroyed 192 | . 13 . . 3 19 2 . 2 19 2 24 . 1 3 9 5 . 16 18 12 13 1 7 . 9 1 1 12 Guns 133 | . 10 . . 3 12 2 . 2 16 1 11 . 1 3 9 5 . 6 18 5 5 1 . . 9 1 1 12 Cannons 2 | . . . . . . . . . . . . . . . . . . . . . 2 . . . . . . . AOE 55 | . 2 . . . 7 . . . 3 . 13 . . . . . . 10 . 7 6 . 7 . . . . . Classes Destroyed 23 | . 3 . . . 4 2 . 2 3 1 1 . . . 2 1 . . . . . 1 . . 1 . . 2 Worker 4 | . . . . . . 1 . . . . . . . 1 . . . . 1 . . . . . . . . 1 Builder 5 | . . . . . 2 . . . . . . . . . . . . . 1 . . . . . . . . 2 Hauler 7 | . 1 . . . 1 3 . . . . . . . . . . . . 1 . . . . . . . . 1 Recycler 2 | . . . . . . 1 . . . . . . . . . . . . . . . . . . 1 . . . Mechanic 2 | . . . . . . . . . . . 1 . . . . . . 1 . . . . . . . . . . Operator 3 | . . . . . 1 . . . . . . . . . . . . . 1 . . . . . . . 1 . Watcher 7 | . . . . . 3 1 . . 1 . . . . . . . . . . . . . . 1 . 1 . . Swarmer 46 | . 6 . . 2 3 . . . 6 2 6 . . . 1 2 . 5 5 1 6 . 1 . . . . . Grunt 80 | . 7 . . 1 12 . . . 7 . 12 . . . 5 1 . 6 6 7 2 . 5 . 5 1 . 3 Brawler 11 | . . . . . . . . . 1 . 2 . . . 1 . . 2 3 1 1 . . . . . . . Duelist 8 | . . . . . . . . . 1 . 2 . . . 1 . . 2 1 1 . . . . . . . . Protector 1 | . . . . . . . . . . . . . . . . . . . . . . . . . . . . 1 Sentry 22 | . . . . . 4 2 . . 2 . 2 . . 1 1 1 . 1 . 1 2 . 1 . 2 . 1 1 Specialist 1 | . . . . . . . . . . . . . . . . . . . . . . . . . . . . 1 Hunter 7 | . . . . . . . . . . . . . . . . . . . 2 . 3 . . . . . . 2 Programmer 9 | . . . . . . . . . 2 . . . 1 2 . . . . 1 1 . . . . . . . 2 Behemoth 1 | . . . . . . . . . . . . . . . . . . . . . . . . . 1 . . . Compactor 2 | . . . . . . . . 2 . . . . . . . . . . . . . . . . . . . . Lightning 2 | . . . . . . . . . . . . . . . . . . . . . . . . . . . . 2 Striker 1 | . . . . . . . . . . . . . . . . . . . . . . 1 . . . . . . Decomposer 4 | . . . . . . . . . . . . . . . . 3 . . . . 1 . . . . . . . Packrat 1 | . . . . . . . . . . . . . . . . 1 . . . . . . . . . . . . Samaritan 2 | . . . . . . . . . . . . . . . 2 . . . . . . . . . . . . . Tinkerer 1 | . . . . . . . . . . . . . . . 1 . . . . . . . . . . . . . Thug 2 | . . . . . . . . . . . . . . . . 2 . . . . . . . . . . . . Savage 3 | . . . . . . . . . . . . . . . . 2 . . . . . . . . 1 . . . Butcher 2 | . . . . . . . . . . . . . . . . 1 . 1 . . . . . . . . . . Martyr 2 | . . . . . . . . 2 . . . . . . . . . . . . . . . . . . . . Guerrilla 1 | . . . . . . . . . . . . . . . . 1 . . . . . . . . . . . . Mutant 5 | . . . . . . . . . . 1 . . . . . 3 . . . . 1 . . . . . . . Commander 1 | . . . . . . . . . . . . . . . . 1 . . . . . . . . . . . . Best Kill Streak 12 | . 5 . . 1 8 4 . 1 3 2 12 . 1 3 7 2 . 7 5 9 5 1 4 1 3 1 1 8 Combat Bots Only 11 | . 5 . . 1 7 1 . 1 3 2 11 . 1 2 7 2 . 7 3 9 5 1 4 . 3 1 1 5 Max Kills in Single Turn 5 | . 2 . . 1 3 2 . 1 2 1 5 . 1 2 1 1 . 4 2 3 4 1 2 1 2 1 1 2 Gunslinging 1 | . . . . . . . . . 1 . 1 . . . . . . . 1 1 . . . . . . . . Exploded 4 | . 2 . . . 3 . . . 2 . 4 . . . . . . 3 . 3 4 . 2 . . . . . Melee . | . . . . . . . . . . . . . . . . . . . . . . . . . . . . . Uniques/NPCs Destroyed . | . . . . . . . . . . . . . . . . . . . . . . . . . . . . . Combat | -11 -10 -10 -10 -9 -8 -8 -7 -7 -7 -7 -7 -7 -6 -6 -6 -6 -6 -5 -5 -5 -5 -5 -4 -4 -4 -4 -4 -4 -------- Run | Scr Mat Min Exi Min Mat Sto Fac Was Fac Low Low Zio Pro Fac Low Low Dat Pro Fac Upp Upp War Pro Fac Ext Cet Arc Hub Damage Taken 14686 | . 664 7 . 245 860 230 . . 738 271 1090 . . 527 546 305 . 750 1592 721 1587 146 213 . 486 69 . 3639 Core 1306 | . 132 7 . 41 144 25 . . 35 . 189 . . 69 58 21 . 80 112 55 58 4 13 . 23 . . 240 Absorbed by Shields 175 | . . . . . . . . . . . . . . . . . . . . . . 3 . . 117 55 . . Reduced by Siege Mode 421 | . . . . . . . . . . . 51 . . . 21 . . 17 44 . 47 . . . . . . 241 Regen/Repaired (Parts) 401 | . . . . . . . . . . . . . . . . . . . 401 . . . . . . . . . Core Remaining (%) 68 | 100 . . . 28 . 69 . . . . . . 68 . . . . 73 . . . . 75 . . . . . Volleys Fired 570 | . 45 1 . 23 62 28 . 26 38 6 30 . 4 8 33 14 . 31 57 16 56 6 8 7 19 3 5 44 Largest 3 | . 2 2 . 2 3 3 . 3 3 3 3 . 3 3 3 3 . 3 3 3 3 3 1 3 3 3 3 3 Hottest 310 | . 100 100 . 40 80 73 . 73 83 83 83 . 147 99 99 96 . 91 86 91 153 99 43 104 106 310 103 111 Shots Fired 1459 | . 89 2 . 42 167 55 . 78 111 18 77 . 12 24 87 40 . 81 171 39 118 18 10 15 57 8 15 125 Gun 1400 | . 89 2 . 39 157 55 . 78 109 18 70 . 12 24 87 40 . 75 171 34 100 18 2 15 57 8 15 125 Cannon 14 | . . . . . . . . . . . . . . . . . . . . . 14 . . . . . . . Launcher 45 | . . . . 3 10 . . . 2 . 7 . . . . . . 6 . 5 4 . 8 . . . . . Special . | . . . . . . . . . . . . . . . . . . . . . . . . . . . . . Kinetic 1299 | . . . . 39 153 55 . 78 109 18 70 . 8 24 87 40 . 75 171 34 100 18 2 15 57 6 15 125 Thermal 110 | . 88 2 . . . . . . . . . . 4 . . . . . . . 14 . . . . 2 . . Explosive 45 | . . . . 3 10 . . . 2 . 7 . . . . . . 6 . 5 4 . 8 . . . . . Electromagnetic 5 | . 1 . . . 4 . . . . . . . . . . . . . . . . . . . . . . . Robot Hit Streak 29 | . 9 . . 9 15 29 . 19 12 2 17 . 10 7 29 12 . 10 16 10 18 14 12 14 19 7 12 18 Robot Miss Streak 6 | . 3 2 . 3 3 1 . 5 5 4 3 . 4 1 2 3 . 4 4 1 3 1 . 2 3 2 2 6 Penetration Max 2 | . . . . . . . . . . . . . . . 1 . . 1 1 . 1 1 . 1 1 1 . 2 Secondary Targets 28 | . 3 . . 1 2 . . . 4 . 4 . . . 1 1 . 1 4 1 1 1 . . 1 . . 3 Max Gunslinging Chain 1 | . 1 . . 1 1 . . . 1 . 1 . . . 1 1 . 1 1 1 1 1 . . 1 . . 1 Shots Hit Robots 1007 | . 59 . . 28 110 30 . 59 62 7 61 . 6 15 72 43 . 57 113 29 84 13 8 6 40 4 12 89 Core Hits 538 | . 23 1 . 11 60 14 . 17 35 4 51 . 1 7 25 11 . 46 46 33 39 7 20 4 29 4 5 45 Critical Kills 16 | . . . . . 1 . . 1 . . . . . . 1 . . . 3 . 3 . . . . 1 . 6 Critical Parts Destroyed 31 | . . . . . . . . . . . 1 . . . . 9 . 1 3 . 5 2 . 1 2 . 1 6 Critical Strikes 53 | . 3 . . . 1 . . 1 . . 1 . . . 2 10 . 1 6 . 9 2 . 1 2 1 1 12 Burn 3 | . 3 . . . . . . . . . . . . . . . . . . . . . . . . . . . Destroy 40 | . . . . . 1 . . 1 . . 1 . . . 2 . . 1 6 . 9 2 . 1 2 1 1 12 Smash 10 | . . . . . . . . . . . . . . . . 10 . . . . . . . . . . . . Melee Attacks 65 | . . . . . . 4 . . 3 . 2 1 . . 3 47 . 1 4 . . . . . . . . . Impact 60 | . . . . . . . . . 2 . 2 1 . . 3 47 . 1 4 . . . . . . . . . Slashing 5 | . . . . . . 4 . . 1 . . . . . . . . . . . . . . . . . . . Piercing . | . . . . . . . . . . . . . . . . . . . . . . . . . . . . . Sneak Attacks 23 | . . . . . . 1 . . 1 . . . . . 2 18 . . 1 . . . . . . . . . Combat Hostiles . | . . . . . . . . . . . . . . . . . . . . . . . . . . . . . Follow-up Attacks . | . . . . . . . . . . . . . . . . . . . . . . . . . . . . . Damage Inflicted 30104 | . 809 40 . 271 2017 580 . 1062 1803 183 2852 . 163 458 1781 2232 . 3169 2339 1801 2127 316 1245 200 1362 137 342 2815 Guns 18953 | . 713 . . 255 1252 470 . 1062 1271 183 974 . 163 438 1524 497 . 1313 2198 507 1140 316 . 200 1339 137 342 2659 Cannons 254 | . . . . . . . . . . . . . . . . . . . . . 254 . . . . . . . Explosions 8395 | . 94 . . . 742 . . . 397 . 1878 . . . . . . 1856 . 1294 733 . 1245 . . . . 156 Melee 2339 | . . . . . . 110 . . 120 . . . . . 257 1735 . . 117 . . . . . . . . . Ramming 163 | . 2 40 . 16 23 . . . 15 . . . . 20 . . . . 24 . . . . . 23 . . . Kinetic 18120 | . . . . 255 1217 470 . 1062 1271 183 974 . 78 438 1524 497 . 1313 2198 507 1140 316 . 200 1339 137 342 2659 Thermal 1274 | . 796 . . . 139 . . . . . . . 85 . . . . . . . 254 . . . . . . . Explosive 8006 | . . . . . 603 . . . 397 . 1878 . . . . . . 1856 . 1294 733 . 1245 . . . . . Electromagnetic 202 | . 11 . . . 35 . . . . . . . . . . . . . . . . . . . . . . 156 Impact 2229 | . . . . . . . . . 120 . . . . . 257 1735 . . 117 . . . . . . . . . Slashing 110 | . . . . . . 110 . . . . . . . . . . . . . . . . . . . . . . Piercing . | . . . . . . . . . . . . . . . . . . . . . . . . . . . . . Highest Corruption 17 | . . . . . 4 6 . . 2 2 4 4 . 1 1 1 . . 2 6 6 10 17 . . 5 5 6 Average Corruption 3 | . . . . . 3 4 . . 2 2 3 4 . 1 1 1 . . 2 4 6 6 10 . . 4 4 2 Corruption Purged 6 | . . . . . . . . . . . . . . . . 1 . . . . . . . . . . 5 . Corruption Blocked . | . . . . . . . . . . . . . . . . . . . . . . . . . . . . . Effects 341 | . . . . . 32 19 . . 18 31 42 3 . . 17 1 . . 1 48 83 2 17 . . 13 6 8 Message Errors 74 | . . . . . 7 2 . . 3 9 9 1 . . 1 . . . . 10 21 . 6 . . 3 1 1 Matter Fused 88 | . . . . . 10 2 . . 4 7 8 1 . . 9 . . . . 12 19 2 6 . . 3 2 3 Heat Flow Errors 33 | . . . . . 3 1 . . 3 3 2 . . . 2 . . . . 7 8 . 1 . . 2 . 1 Energy Discharges 46 | . . . . . 1 7 . . 1 5 8 . . . 2 . . . 1 7 10 . 1 . . 2 1 . Parts Rejected 2 | . . . . . . . . . 1 . . . . . . . . . . . 1 . . . . . . . Data Loss (minor) 49 | . . . . . 6 4 . . 2 4 10 1 . . 1 1 . . . 9 10 . 1 . . . . . Data Loss (major) 16 | . . . . . 2 1 . . 2 . . . . . . . . . . 2 8 . . . . 1 . . Misfires 18 | . . . . . 3 1 . . 1 1 2 . . . 1 . . . . 1 3 . 2 . . 1 1 1 Alerts 9 | . . . . . . 1 . . 1 1 2 . . . . . . . . . 3 . . . . 1 . . Weapon Failures 6 | . . . . . . . . . . 1 1 . . . 1 . . . . . . . . . . . 1 2 Overload Shots 2 | . . . . . . . . . . . . . . . . . . . . . . . . . . 2 . . Overflow Damage 1695 | . 17 . . . 13 . . . 13 . 35 . . . 67 1261 . 111 77 14 43 . 44 . . . . . Projectiles 40 | . . . . . . . . . . . . . . . . . . . . . 40 . . . . . . . Explosions 250 | . 17 . . . 13 . . . 13 . 35 . . . . . . 111 . 14 3 . 44 . . . . . Melee 1405 | . . . . . . . . . . . . . . . 67 1261 . . 77 . . . . . . . . . Knockbacks 9 | . . 1 . . . . . . . . . . . . 1 6 . . 1 . . . . . . . . . Impact 9 | . . 1 . . . . . . . . . . . . 1 6 . . 1 . . . . . . . . . Kinetic . | . . . . . . . . . . . . . . . . . . . . . . . . . . . . . Secondary . | . . . . . . . . . . . . . . . . . . . . . . . . . . . . . Self-Inflicted Damage 200 | . 38 . . 10 40 . . . . . . . . . . . . . . 103 . . . . . . . 9 Shots 8 | . 1 . . 1 2 . . . . . . . . . . . . . . 3 . . . . . . . 1 Rammed 25 | . 1 7 . 6 2 . . . 3 . . . . 2 . . . . 2 . . . . . 2 . . . Targets Rammed 25 | . 1 7 . 6 2 . . . 3 . . . . 2 . . . . 2 . . . . . 2 . . . Kicked . | . . . . . . . . . . . . . . . . . . . . . . . . . . . . . Crushed . | . . . . . . . . . . . . . . . . . . . . . . . . . . . . . Highest Temperature 391 | . 358 9 . 21 217 142 . 88 140 233 230 . 315 105 249 57 . 39 174 275 325 18 129 108 108 298 48 391 Average Temperature 73 | . 109 6 . 6 63 30 . 28 30 71 75 . 161 34 110 19 . 15 59 83 93 9 50 47 25 128 19 136 Received Heat Transfer 2578 | . 270 . . 84 414 36 . . 198 . 261 . . 54 108 48 . 114 171 117 144 9 48 . 126 20 . 356 Effects 6 | . . . . . . . . . . . . . 1 . 3 . . . . . . . . . . . . 2 Energy Bleed 1 | . . . . . . . . . . . . . . . . . . . . . . . . . . . . 1 Interference 4 | . . . . . . . . . . . . . . . 3 . . . . . . . . . . . . 1 Damage (minor) 1 | . . . . . . . . . . . . . 1 . . . . . . . . . . . . . . . Siege Activations 22 | . . . . . . . . . . . 2 . . . 2 4 . 3 6 1 2 . . . . . . 2 Total Turns 399 | . . . . . . . . . . . 39 . . . 81 38 . 36 65 2 29 . . . . . . 109 Longest Duration 66 | . . . . . . . . . . . 23 . . . 57 15 . 18 22 2 23 . . . . . . 66 Robots Corrupted . | . . . . . . . . . . . . . . . . . . . . . . . . . . . . . Combat Hostiles . | . . . . . . . . . . . . . . . . . . . . . . . . . . . . . Parts Fried 9 | . . . . . . . . . . 1 . . . . 2 6 . . . . . . . . . . . . Impact Corruptions 35 | . . . . . . . . . . . . . . . 2 30 . . 3 . . . . . . . . . Robots Melted 1 | . 1 . . . . . . . . . . . . . . . . . . . . . . . . . . . Combat Hostiles 1 | . 1 . . . . . . . . . . . . . . . . . . . . . . . . . . . Parts Melted 10 | . 4 . . . . . . 2 3 . . . 1 . . . . . . . . . . . . . . . Heat Transferred 2950 | . 2289 . . . 150 . . . . . . . 111 . . . . . . . 400 . . . . . . . Parts Sabotaged . | . . . . . . . . . . . . . . . . . . . . . . . . . . . . . Parts Stolen . | . . . . . . . . . . . . . . . . . . . . . . . . . . . . . Parts Stripped . | . . . . . . . . . . . . . . . . . . . . . . . . . . . . . Power Chain Reactions 2 | . 1 . . . 1 . . . . . . . . . . . . . . . . . . . . . . . Missiles Intercepted . | . . . . . . . . . . . . . . . . . . . . . . . . . . . . . Alert | -11 -10 -10 -10 -9 -8 -8 -7 -7 -7 -7 -7 -7 -6 -6 -6 -6 -6 -5 -5 -5 -5 -5 -4 -4 -4 -4 -4 -4 ------- Run | Scr Mat Min Exi Min Mat Sto Fac Was Fac Low Low Zio Pro Fac Low Low Dat Pro Fac Upp Upp War Pro Fac Ext Cet Arc Hub Peak Influence 1124 | . 267 31 . 100 316 376 170 59 925 . . . . 111 . . . . 1124 . . . . 111 503 943 435 742 Initial 297 | . . 16 . . . 109 170 59 . . . . . . . . . . 264 . . . . 56 2 171 297 141 Average 226 | . 116 13 . 18 157 126 170 23 435 . . . . 32 . . . . 670 . . . . 52 223 687 395 418 Maximum Alert Level 4 | . 1 . . . 1 1 . . 3 . . . . . . . . . 4 . . . . . 2 3 2 3 Low Security (%) 63 | 100 84 100 . 100 78 84 100 100 30 . . . . 100 . . . . . . . . . 100 41 5 . 16 Level 1 15 | . 15 . . . 21 15 . . 9 . . . . . . . . . 32 . . . . . 53 8 39 28 Level 2 10 | . . . . . . . . . 38 . . . . . . . . . 18 . . . . . 5 2 60 45 Level 3 10 | . . . . . . . . . 21 . . . . . . . . . 47 . . . . . . 83 . 9 Level 4 . | . . . . . . . . . . . . . . . . . . . 2 . . . . . . . . . Level 5 . | . . . . . . . . . . . . . . . . . . . . . . . . . . . . . High Security . | . . . . . . . . . . . . . . . . . . . . . . . . . . . . . Max Security . | . . . . . . . . . . . . . . . . . . . . . . . . . . . . . Squads Dispatched 45 | . 5 . . . 5 1 . . 12 . 1 . . 2 . . . 1 11 . . . . . 1 . . 6 Investigation 10 | . 3 . . . 2 . . . 2 . . . . . . . . . 2 . . . . . 1 . . . Extermination 9 | . . . . . . . . . 5 . . . . 2 . . . . 1 . . . . . . . . 1 Reinforcement 17 | . 2 . . . 3 1 . . 4 . . . . . . . . . 2 . . . . . . . . 5 Assault 5 | . . . . . . . . . 1 . 1 . . . . . . 1 2 . . . . . . . . . Garrison 4 | . . . . . . . . . . . . . . . . . . . 4 . . . . . . . . . Intercept . | . . . . . . . . . . . . . . . . . . . . . . . . . . . . . Searches Triggered . | . . . . . . . . . . . . . . . . . . . . . . . . . . . . . Data Miner Redirects 2 | . . . . . . . . . . . . . . . . . . . 1 . . . . . 1 . . . Construction Impeded 3 | . . . . . 2 . . . . . . . . . . . . . . . . . . . . . . 1 Haulers Reinforced 2 | . . . . . . . . . . . . . . . . . . . 1 . . . . . . . . 1 Active Scanning Responses . | . . . . . . . . . . . . . . . . . . . . . . . . . . . . . Cargo Convoy Interrupts . | . . . . . . . . . . . . . . . . . . . . . . . . . . . . . Stealth | -11 -10 -10 -10 -9 -8 -8 -7 -7 -7 -7 -7 -7 -6 -6 -6 -6 -6 -5 -5 -5 -5 -5 -4 -4 -4 -4 -4 -4 --------- Run | Scr Mat Min Exi Min Mat Sto Fac Was Fac Low Low Zio Pro Fac Low Low Dat Pro Fac Upp Upp War Pro Fac Ext Cet Arc Hub Distress Signals 19 | . 2 . . 1 2 3 . . 2 . . . . . . . . . 3 . . . . . 3 1 . 2 Communications Jammed 5 | . . . . . . . . . . . . . . . . . . . . . . . . . . . . 5 Distress Signals 5 | . . . . . . . . . . . . . . . . . . . . . . . . . . . . 5 Times Spotted 407 | . 17 3 . 10 36 12 . 6 54 4 27 . 1 8 11 8 . 29 41 12 11 24 7 3 26 19 10 28 Peak Tracking Total 12 | . 7 3 . 4 5 3 . 3 4 4 9 . 1 3 7 3 . 10 6 9 4 11 4 2 4 9 2 12 Tactical Retreats 11 | . . . . . 7 . . . . . 1 . . . . . . . . . . . . . 1 1 . 1 Traps | -11 -10 -10 -10 -9 -8 -8 -7 -7 -7 -7 -7 -7 -6 -6 -6 -6 -6 -5 -5 -5 -5 -5 -4 -4 -4 -4 -4 -4 ------- Run | Scr Mat Min Exi Min Mat Sto Fac Was Fac Low Low Zio Pro Fac Low Low Dat Pro Fac Upp Upp War Pro Fac Ext Cet Arc Hub Traps Triggered 11 | . 2 . . . 2 1 1 . 1 . . . . . . . . . 2 . . . . . 1 . . 1 Indirectly . | . . . . . . . . . . . . . . . . . . . . . . . . . . . . . Trap Hack Attempts . | . . . . . . . . . . . . . . . . . . . . . . . . . . . . . Triggered . | . . . . . . . . . . . . . . . . . . . . . . . . . . . . . Disarmed . | . . . . . . . . . . . . . . . . . . . . . . . . . . . . . Reprogrammed . | . . . . . . . . . . . . . . . . . . . . . . . . . . . . . Reused 4 | . . . . . 4 . . . . . . . . . . . . . . . . . . . . . . . Traps Extracted 7 | . . . . . . . . . . . . . . . 1 . . . . . . 6 . . . . . . Installed 6 | . . . . . 5 . . . . . . . . . . . . . . . . 1 . . . . . . Triggered 14 | . . . . . 4 . . . . 2 . . . . . . . . . 2 . 6 . . . . . . Most Traps Carried 6 | . . . . 5 5 . . . . . . . . . 1 1 1 1 1 1 1 6 6 6 6 6 6 6 Machines | -11 -10 -10 -10 -9 -8 -8 -7 -7 -7 -7 -7 -7 -6 -6 -6 -6 -6 -5 -5 -5 -5 -5 -4 -4 -4 -4 -4 -4 ---------- Run | Scr Mat Min Exi Min Mat Sto Fac Was Fac Low Low Zio Pro Fac Low Low Dat Pro Fac Upp Upp War Pro Fac Ext Cet Arc Hub Machines Disabled 31 | . . . . . . 3 . . . . . . . . 1 1 . 2 3 2 . . . . 4 1 1 13 Max in Single Turn 9 | . . . . . . 1 . . . . . . . . 1 1 . 1 1 1 . . . . 2 1 . 9 Network Hub 1 | . . . . . . . . . . . . . . . . . . . . . . . . . . . . 1 Machines Sabotaged . | . . . . . . . . . . . . . . . . . . . . . . . . . . . . . Garrisons Compromised . | . . . . . . . . . . . . . . . . . . . . . . . . . . . . . Overloaded Fab Kills . | . . . . . . . . . . . . . . . . . . . . . . . . . . . . . Hacking | -11 -10 -10 -10 -9 -8 -8 -7 -7 -7 -7 -7 -7 -6 -6 -6 -6 -6 -5 -5 -5 -5 -5 -4 -4 -4 -4 -4 -4 --------- Run | Scr Mat Min Exi Min Mat Sto Fac Was Fac Low Low Zio Pro Fac Low Low Dat Pro Fac Upp Upp War Pro Fac Ext Cet Arc Hub Machines Accessed 59 | . 6 . 1 . 9 6 1 . 9 . 2 . . 3 1 2 4 . 3 . . 2 . 2 4 1 . 3 Terminals 29 | . 4 . . . 5 6 1 . 3 . . . . 2 . . . . . . . . . . 4 1 . 3 Fabricators 4 | . . . . . . . . . 3 . . . . 1 . . . . . . . . . . . . . . Repair Stations 2 | . . . . . . . . . . . . . . . . . . . 1 . . . . 1 . . . . Recycling Units 6 | . 2 . . . 2 . . . 1 . . . . . . . . . 1 . . . . . . . . . Scanalyzers 3 | . . . . . 1 . . . 1 . . . . . . . . . . . . . . 1 . . . . Garrison Access 3 | . . . . . 1 . . . 1 . . . . . . . . . 1 . . . . . . . . . Total Hacks 221 | . 22 . 23 . 32 13 2 . 31 . 3 . . 10 1 8 30 . 11 . . 5 . 8 10 2 . 10 Successful 147 | . 12 . 23 . 15 5 . . 18 . 3 . . 4 1 8 30 . 7 . . 5 . 6 3 . . 7 Failed 73 | . 9 . . . 17 8 2 . 13 . . . . 6 . . . . 4 . . . . 2 7 2 . 3 Catastrophic 9 | . 1 . . . 1 1 1 . 2 . . . . 1 . . . . . . . . . . . 1 . 1 Database Lockouts 1 | . 1 . . . . . . . . . . . . . . . . . . . . . . . . . . . Manual 101 | . 19 . . . 24 9 2 . 11 . . . . 9 . . . . 5 . . 1 . . 10 1 . 10 Terminals 92 | . 17 . . . 21 13 2 . 8 . . . . 9 . . . . . . . . . . 10 2 . 10 Fabricators 13 | . . . . . . . . . 12 . . . . 1 . . . . . . . . . . . . . . Repair Stations 8 | . . . . . . . . . . . . . . . . . . . 5 . . . . 3 . . . . Recycling Units 13 | . 5 . . . 5 . . . 1 . . . . . . . . . 2 . . . . . . . . . Scanalyzers 17 | . . . . . 4 . . . 8 . . . . . . . . . . . . . . 5 . . . . Garrison Access 8 | . . . . . 2 . . . 2 . . . . . . . . . 4 . . . . . . . . . Terminal Hacks 93 | . 4 . 23 . 7 3 . . 1 . 3 . . 2 1 8 30 . . . . 5 . . 2 . . 4 Record 48 | . . . 23 . . . . . . . 2 . . . . 7 11 . . . . 5 . . . . . . Part Schematic 11 | . 1 . . . . . . . . . . . . . . . 10 . . . . . . . . . . . Robot Schematic 6 | . . . . . . . . . . . . . . . . . 6 . . . . . . . . . . . Robot Analysis 4 | . 2 . . . 1 . . . . . . . . 1 . . . . . . . . . . . . . . Prototype ID Bank 3 | . . . . . . . . . . . . . . . . . 3 . . . . . . . . . . . Open Door 5 | . . . . . . 2 . . . . 1 . . . 1 1 . . . . . . . . . . . . Branch Access Points 1 | . . . . . 1 . . . . . . . . . . . . . . . . . . . . . . . Terminal Index 6 | . 1 . . . 1 1 . . 1 . . . . 1 . . . . . . . . . . . . . 1 Alert Level 3 | . . . . . 1 . . . . . . . . . . . . . . . . . . . 1 . . 1 Unreport Threat 4 | . . . . . 1 . . . . . . . . . . . . . . . . . . . 1 . . 2 Locate Traps 2 | . . . . . 2 . . . . . . . . . . . . . . . . . . . . . . . Fabricator Hacks 4 | . . . . . . . . . 4 . . . . . . . . . . . . . . . . . . . Network Status 1 | . . . . . . . . . 1 . . . . . . . . . . . . . . . . . . . Load Schematic 2 | . . . . . . . . . 2 . . . . . . . . . . . . . . . . . . . Build 1 | . . . . . . . . . 1 . . . . . . . . . . . . . . . . . . . Repair Station Hacks 5 | . . . . . . . . . . . . . . . . . . . 4 . . . . 1 . . . . Scan Component 3 | . . . . . . . . . . . . . . . . . . . 2 . . . . 1 . . . . Repair 2 | . . . . . . . . . . . . . . . . . . . 2 . . . . . . . . . Recycling Unit Hacks 4 | . 2 . . . 1 . . . . . . . . . . . . . 1 . . . . . . . . . Retrieve Components 4 | . 2 . . . 1 . . . . . . . . . . . . . 1 . . . . . . . . . Scanalyzer 15 | . . . . . 2 . . . 8 . . . . . . . . . . . . . . 5 . . . . Insert Component 7 | . . . . . 1 . . . 4 . . . . . . . . . . . . . . 2 . . . . Analyze 8 | . . . . . 1 . . . 4 . . . . . . . . . . . . . . 3 . . . . Garrison Access Hacks . | . . . . . . . . . . . . . . . . . . . . . . . . . . . . . Unauthorized Hacks 26 | . 6 . . . 5 2 . . 5 . . . . 2 . . . . 2 . . . . . 1 . . 3 Terminals 19 | . 4 . . . 3 2 . . 4 . . . . 2 . . . . . . . . . . 1 . . 3 Track 1 | . . . . . . . . . . . . . . . . . . . . . . . . . . . . 1 Assimilate 1 | . . . . . . . . . 1 . . . . . . . . . . . . . . . . . . . Botnet 12 | . 4 . . . 2 1 . . 2 . . . . 1 . . . . . . . . . . 1 . . 1 Operators 5 | . . . . . 1 1 . . 1 . . . . 1 . . . . . . . . . . . . . 1 Fabricators . | . . . . . . . . . . . . . . . . . . . . . . . . . . . . . Repair Stations . | . . . . . . . . . . . . . . . . . . . . . . . . . . . . . Recycling Units 5 | . 2 . . . 2 . . . . . . . . . . . . . 1 . . . . . . . . . Tunnel 5 | . 2 . . . 2 . . . . . . . . . . . . . 1 . . . . . . . . . Scanalyzers . | . . . . . . . . . . . . . . . . . . . . . . . . . . . . . Garrison Access 2 | . . . . . . . . . 1 . . . . . . . . . 1 . . . . . . . . . Reprogram 1 | . . . . . . . . . 1 . . . . . . . . . . . . . . . . . . . Watchers 1 | . . . . . . . . . . . . . . . . . . . 1 . . . . . . . . . Data Cores Recovered 2 | . . . . . 1 . . . . . . . . . . . . . . . . . . . 1 . . . Used 1 | . . . . . . . . . . . . . . . . . . . . . . . . . 1 . . . Hacking Detections 41 | . 4 . . . 8 5 1 . 9 . . . . 3 . . . . 2 . . . . 2 4 1 . 2 Full Trace Events 2 | . . . . . . . . . 1 . . . . . . . . . . . . . . . 1 . . . Feedback Events . | . . . . . . . . . . . . . . . . . . . . . . . . . . . . . Feedback Blocked . | . . . . . . . . . . . . . . . . . . . . . . . . . . . . . Robot Schematics Acquired 10 | . . . . . . . . . . . . 4 . . . . 6 . . . . . . . . . . . Robots Built . | . . . . . . . . . . . . . . . . . . . . . . . . . . . . . Authchips . | . . . . . . . . . . . . . . . . . . . . . . . . . . . . . Time . | . . . . . . . . . . . . . . . . . . . . . . . . . . . . . Total Robot Build Rating . | . . . . . . . . . . . . . . . . . . . . . . . . . . . . . Part Schematics Acquired 33 | . 1 . . . 1 . . . 4 . . 15 . . . . 10 . . . . . . 2 . . . . Parts Built 1 | . . . . . . . . . 1 . . . . . . . . . . . . . . . . . . . Authchips . | . . . . . . . . . . . . . . . . . . . . . . . . . . . . . Time 102 | . . . . . . . . . 102 . . . . . . . . . . . . . . . . . . . Total Part Build Rating 8 | . . . . . . . . . 8 . . . . . . . . . . . . . . . . . . . Parts Repaired 2 | . . . . . . . . . . . . . . . . . . . 2 . . . . . . . . . Time 82 | . . . . . . . . . . . . . . . . . . . 82 . . . . . . . . . Parts Recycled . | . . . . . . . . . . . . . . . . . . . . . . . . . . . . . Recycled Matter . | . . . . . . . . . . . . . . . . . . . . . . . . . . . . . Retrieved Matter . | . . . . . . . . . . . . . . . . . . . . . . . . . . . . . Retrieved Components 29 | . 20 . . . 3 . . . . . . . . . . . . . 6 . . . . . . . . . Parts Scanalyzed 7 | . . . . . 1 . . . 4 . . . . . . . . . . . . . . 2 . . . . Part Schematics Acquired 7 | . . . . . 1 . . . 4 . . . . . . . . . . . . . . 2 . . . . Parts Damaged . | . . . . . . . . . . . . . . . . . . . . . . . . . . . . . Bothacking | -11 -10 -10 -10 -9 -8 -8 -7 -7 -7 -7 -7 -7 -6 -6 -6 -6 -6 -5 -5 -5 -5 -5 -4 -4 -4 -4 -4 -4 ------------ Run | Scr Mat Min Exi Min Mat Sto Fac Was Fac Low Low Zio Pro Fac Low Low Dat Pro Fac Upp Upp War Pro Fac Ext Cet Arc Hub Used RIF Installer . | . . . . . . . . . . . . . . . . . . . . . . . . . . . . . Robots Hacked . | . . . . . . . . . . . . . . . . . . . . . . . . . . . . . Non-combat . | . . . . . . . . . . . . . . . . . . . . . . . . . . . . . Combat . | . . . . . . . . . . . . . . . . . . . . . . . . . . . . . Robot Hacks Applied . | . . . . . . . . . . . . . . . . . . . . . . . . . . . . . Relay Couplers Released . | . . . . . . . . . . . . . . . . . . . . . . . . . . . . . Fabnet Peak Effective % . | . . . . . . . . . . . . . . . . . . . . . . . . . . . . . Robots Rewired 23 | . . . . . . . . . . . 2 . . . 2 3 . 1 . 2 . . . . 13 . . . Allies Hacked 1 | . . . . . . . . . 1 . . . . . . . . . . . . . . . . . . . Hacks Repelled . | . . . . . . . . . . . . . . . . . . . . . . . . . . . . . Allies | -11 -10 -10 -10 -9 -8 -8 -7 -7 -7 -7 -7 -7 -6 -6 -6 -6 -6 -5 -5 -5 -5 -5 -4 -4 -4 -4 -4 -4 -------- Run | Scr Mat Min Exi Min Mat Sto Fac Was Fac Low Low Zio Pro Fac Low Low Dat Pro Fac Upp Upp War Pro Fac Ext Cet Arc Hub Total Allies 80 | . . 1 . 5 . 10 . 18 4 . 2 2 . . 2 3 . 3 . 2 . . . . 23 5 . . Largest Group 25 | . . 1 . 5 . 10 7 25 23 . 2 2 2 2 2 3 2 3 2 2 2 . . . 17 16 15 11 Highest-Rated Group 1022 | . . 31 . 99 . 173 122 556 486 . 40 59 59 59 61 75 50 195 195 98 98 . . . 823 1022 926 639 Highest-Rated Ally 159 | . . 31 . 31 . 29 29 35 31 . 20 31 31 31 32 32 25 99 99 49 49 . . . 159 159 159 96 Total Orders 17 | . . . . . . . . 5 2 . . . . . 2 . . . . . . . . . 4 2 2 . STAY 9 | . . . . . . . . 3 1 . . . . . 1 . . . . . . . . . 2 1 1 . FOLLOW 8 | . . . . . . . . 2 1 . . . . . 1 . . . . . . . . . 2 1 1 . Ally Attacks 958 | . . . . 40 . 69 . 105 307 . 4 . 7 5 13 12 . 50 54 8 27 . . . 84 94 29 50 Total Damage 21284 | . . . . 546 . 887 . 1475 3948 . 70 . 75 86 307 286 . 1386 2855 311 853 . . . 2394 2509 1025 2271 Kills 158 | . . . . 10 . 12 . 4 33 . 2 . . 1 2 3 . 13 22 1 3 . . . 22 20 2 8 Allies Corrupted 4 | . . . . 2 . . . . 1 . . . . . . . . . 1 . . . . . . . . . Allies Melted 2 | . . . . . . . . . . . . . . . . . . . . . . . . . 2 . . . Intel | -11 -10 -10 -10 -9 -8 -8 -7 -7 -7 -7 -7 -7 -6 -6 -6 -6 -6 -5 -5 -5 -5 -5 -4 -4 -4 -4 -4 -4 ------- Run | Scr Mat Min Exi Min Mat Sto Fac Was Fac Low Low Zio Pro Fac Low Low Dat Pro Fac Upp Upp War Pro Fac Ext Cet Arc Hub Robot Analysis Total 4 | . 2 . . . 1 . . . . . . . . 1 . . . . . . . . . . . . . . Derelict Logs Recovered 19 | . . 2 . 1 . . . . . 1 2 . 2 . 3 2 . 2 . 1 2 . 1 . . . . . Drone Launches . | . . . . . . . . . . . . . . . . . . . . . . . . . . . . . Drone Recoveries . | . . . . . . . . . . . . . . . . . . . . . . . . . . . . . Exploration | -11 -10 -10 -10 -9 -8 -8 -7 -7 -7 -7 -7 -7 -6 -6 -6 -6 -6 -5 -5 -5 -5 -5 -4 -4 -4 -4 -4 -4 ------------- Run | Scr Mat Min Exi Min Mat Sto Fac Was Fac Low Low Zio Pro Fac Low Low Dat Pro Fac Upp Upp War Pro Fac Ext Cet Arc Hub Turns Passed 36472 | 71 1105 936 362 2018 1363 977 166 1023 2441 2237 1945 1627 1709 547 2372 2618 119 1913 1099 1834 2959 917 608 622 1616 567 248 453 Spaces Moved 17025 | 40 585 572 209 730 638 361 69 363 965 938 871 679 713 291 1350 1464 77 1025 485 1077 1252 359 353 322 788 210 71 168 Core 3 | 3 . . . . . . . . . . . . . . . . . . . . . . . . . . . . Treads 17022 | 37 585 572 209 730 638 361 69 363 965 938 871 679 713 291 1350 1464 77 1025 485 1077 1252 359 353 322 788 210 71 168 Legs . | . . . . . . . . . . . . . . . . . . . . . . . . . . . . . Wheels . | . . . . . . . . . . . . . . . . . . . . . . . . . . . . . Hover . | . . . . . . . . . . . . . . . . . . . . . . . . . . . . . Flight . | . . . . . . . . . . . . . . . . . . . . . . . . . . . . . Fastest Speed 50 | 50 160 160 160 240 156 236 236 232 232 233 158 158 238 156 156 156 156 156 160 160 160 165 166 166 161 160 160 160 Average Speed 190 | 151 160 160 171 240 160 236 236 232 234 236 208 237 238 156 156 156 156 171 160 160 221 198 166 166 164 160 160 160 Slowest Speed 246 | 160 160 160 240 240 240 236 236 236 235 237 246 238 238 156 156 158 156 243 162 160 245 245 166 166 246 161 160 240 Overloaded Moves . | . . . . . . . . . . . . . . . . . . . . . . . . . . . . . Propulsion Burnouts . | . . . . . . . . . . . . . . . . . . . . . . . . . . . . . Robots Hopped . | . . . . . . . . . . . . . . . . . . . . . . . . . . . . . Cave-ins Triggered . | . . . . . . . . . . . . . . . . . . . . . . . . . . . . . Exploration Rate (%) 64 | 3 93 99 59 96 53 63 4 96 36 87 95 76 73 8 96 93 68 93 19 96 97 51 57 10 88 65 73 23 Regions Visited 28 Branch Regions 20 Pre-discovered Areas 11 | . 2 1 1 . 2 . . . . 1 . . . . 1 1 1 . 1 . . . . . . . . . Known Exits Taken 19 | . . . . . 1 1 . . 1 1 1 1 1 1 1 1 1 1 1 1 . . 1 1 1 1 1 . Unknown Exits Taken 7 | 1 1 1 1 1 . . . . . . . . . . . . . . . . 1 1 . . . . . . Scrap Searched 28 | . . 3 . 1 . . . . . 4 3 2 1 . 2 3 . 2 . 2 4 . 1 . . . . . Spaces Dug 105 | . . . . 9 . . . . 2 . 2 . . . 1 29 . 1 3 . 51 . . 5 . . . 2 Terrain Destroyed 690 | . 3 . . 24 36 . . . 19 1 88 . 1 . 3 30 . 60 7 47 72 6 64 11 17 1 2 198 Melee 38 | . . . . . . . . . 2 . 2 . . . 1 29 . 1 3 . . . . . . . . . Projectile 92 | . . . . . . . . . . 1 . . 1 . 2 1 . . 4 1 13 6 . 11 17 1 2 32 AOE 560 | . 3 . . 24 36 . . . 17 . 86 . . . . . . 59 . 46 59 . 64 . . . . 166 Terrain Rammed . | . . . . . . . . . . . . . . . . . . . . . . . . . . . . . Walls Destroyed . | . . . . . . . . . . . . . . . . . . . . . . . . . . . . . Machines Disabled . | . . . . . . . . . . . . . . . . . . . . . . . . . . . . . Actions | -11 -10 -10 -10 -9 -8 -8 -7 -7 -7 -7 -7 -7 -6 -6 -6 -6 -6 -5 -5 -5 -5 -5 -4 -4 -4 -4 -4 -4 --------- Run | Scr Mat Min Exi Min Mat Sto Fac Was Fac Low Low Zio Pro Fac Low Low Dat Pro Fac Upp Upp War Pro Fac Ext Cet Arc Hub Total 20061 | 47 666 588 213 951 889 453 75 509 1076 948 947 690 717 367 1541 1686 76 1119 715 1168 1360 545 365 399 1065 437 195 254 Wait 1498 | . 4 2 . 181 120 42 . 93 44 . 17 . 1 51 88 93 . 24 135 31 27 140 2 51 18 211 111 12 Move 16998 | 39 584 571 208 729 637 360 69 362 964 937 870 678 712 290 1349 1463 76 1024 484 1076 1251 358 352 321 787 209 70 168 Hop . | . . . . . . . . . . . . . . . . . . . . . . . . . . . . . Pick Up 138 | 2 17 1 1 8 21 8 3 7 5 3 5 . . 6 4 7 . 3 5 1 8 3 . 1 8 3 2 6 Fast Attach 91 | 6 3 1 . . 5 . . 1 1 . 1 4 . . 2 5 . 4 11 . 5 14 . 4 17 2 1 4 Attach 89 | . 4 2 . 2 10 1 2 2 5 2 3 . . 3 4 8 . 6 3 6 6 3 . 6 . 1 2 8 Detach 32 | . 1 . . . 2 . . . 1 . . . . . 3 2 . 3 4 . 1 7 . 5 . . 1 2 Swap 93 | . 2 . 2 2 8 4 . 5 7 . 9 3 . 3 6 6 . 6 3 2 6 6 3 1 1 1 1 6 Drop 133 | . 5 3 2 . 17 6 1 13 5 . 2 4 . 4 7 10 . 4 7 1 . 7 . 3 19 7 2 4 Fire 570 | . 45 1 . 23 62 28 . 26 38 6 30 . 4 8 33 14 . 31 57 16 56 6 8 7 19 3 5 44 Melee 65 | . . . . . . 4 . . 3 . 2 1 . . 3 47 . 1 4 . . . . . . . . . Ram . | . . . . . . . . . . . . . . . . . . . . . . . . . . . . . Kick . | . . . . . . . . . . . . . . . . . . . . . . . . . . . . . Crush 25 | . 1 7 . 6 2 . . . 3 . . . . 2 . . . . 2 . . . . . 2 . . . Escape Stasis 2 | . . . . . . . . . . . . . . . . . . . . . . . . . 2 . . . Rewire 321 | . . . . . . . . . . . 8 . . . 42 31 . 13 . 35 . . . . 192 . . . Trap 6 | . . . . . 5 . . . . . . . . . . . . . . . . 1 . . . . . . Miscellaneous . | . . . . . . . . . . . . . . . . . . . . . . . . . . . . . Route ------- -11/Scrapyard -10/Materials (discovered 5 exits: [*Mat x3] / [*Min x2]) -10/Mines (discovered 3 exits: [*Mat x2] / *Exi) -10/Exiles -9/Mines (discovered 2 exits: *Mat x2) -8/Materials (discovered 4 exits: *Fac x2 / *Sto x2) -8/Storage -7/Factory -7/Waste -7/Factory (discovered 3 exits: *Fac x2 / *Low) -7/Lower Caves (discovered 2 exits: *Low / *Zio) -7/Lower Caves (discovered 2 exits: *Fac / *Zio) -7/Zion -6/Proximity Caves -6/Factory (discovered 2 exits: Fac / *Low) -6/Lower Caves -6/Lower Caves (discovered 2 exits: *Fac / *Dat) -6/Data Miner -5/Proximity Caves -5/Factory (discovered 2 exits: Fac / *Upp) -5/Upper Caves -5/Upper Caves (discovered 2 exits: *Fac / *War) -5/Warlord -4/Proximity Caves -4/Factory -4/Extension (discovered 2 exits: [*Res] / *Cet) -4/Cetus -4/Archives (discovered 3 exits: [*Res] / *Hub x2) -4/Hub_04(d) (discovered 2 exits: [*Res x2]) History --------- Turn | Location | Event 4 | -11/Scrapyard | Discovered new exit (range 16) 72 | -11/Scrapyard | Entered Materials 177 | -10/Materials | Met 8R-AWN 270 | -10/Materials | Discovered new exit (range 11) 340 | -10/Materials | Build established: Mutant 486 | -10/Materials | Discovered new exit (range 16) 616 | -10/Materials | Core integrity fell below 50% 662 | -10/Materials | Discovered new exit (range 10) 821 | -10/Materials | Discovered new exit (range 8) 1039 | -10/Materials | Central database locked down 1078 | -10/Materials | Discovered new exit (range 6) 1177 | -10/Materials | Entered Mines 1179 | -10/Mines | Followed 8R-AWN into the Mines 1198 | -10/Mines | Discovered new exit (range 5) 1241 | -10/Mines | Learned location of Storage (-8) 1342 | -10/Mines | Received a Mining Laser from a helpful Derelict 1374 | -10/Mines | Received a Rocket Launcher from a helpful Derelict 1390 | -10/Mines | Learned Materials emergency access door positions 1686 | -10/Mines | Discovered new exit (range 5) 1788 | -10/Mines | Discovered new exit (range 5) 2113 | -10/Mines | Entered Exiles 2158 | -10/Exiles | Welcomed by 8R-AWN 2181 | -10/Exiles | Met EX-HEX 2248 | -10/Exiles | Met EX-DEC 2251 | -10/Exiles | Learned location of Zion (-7) 2450 | -10/Exiles | Discovered new exit (range 12) 2475 | -10/Exiles | Entered Mines 2491 | -9/Mines | Met a Derelict bent on vengeance 2680 | -9/Mines | Learned Materials security intel 2711 | -9/Mines | Found a damaged Exp. Sensor Array with a note attached 2716 | -9/Mines | Found Prototype Device 2832 | -9/Mines | Discovered new exit (range 7) 2964 | -9/Mines | Discovered new exit (range 8) 3246 | -9/Mines | Assisted by bots powering up and referring to "LRC-V3" 3419 | -9/Mines | Found a hidden stash of uninstalled traps 3908 | -9/Mines | Assembled infested the area 3913 | -9/Mines | Assisted by a Guerilla fighting off Assembled 4493 | -9/Mines | Entered Materials 4493 | -8/Materials | Evolved 4 slots: Propulsion x2, Utility x1, Weapon x1 4495 | -8/Materials | Identified Exp. Sensor Array 4599 | -8/Materials | Destroyed 7 combat bots 4950 | -8/Materials | Discovered new exit (range 3) 4977 | -8/Materials | Identified exit to Factory 5150 | -8/Materials | Identified exit to Storage 5164 | -8/Materials | Build established: Scavenger-Skirmisher 5528 | -8/Materials | Discovered exit to Factory (range 14) 5635 | -8/Materials | Build established: Skirmisher 5856 | -8/Materials | Entered Storage 6437 | -8/Storage | Assisted by bots powering up and referring to "LRC-V3" 6813 | -8/Storage | Discovered exit to Factory (range 6) 6833 | -8/Storage | Entered Factory 6833 | -7/Factory | Accompanied by 7 allies 6833 | -7/Factory | Evolved 2 slots: Utility x2 6999 | -7/Factory | Sucked down chute 6999 | -7/Factory | Entered Waste 7036 | -7/Waste | Destroyed C-40 Crusher 7051 | -7/Waste | Found Damper Plating 7090 | -7/Waste | 7 allies followed down the chute 7107 | -7/Waste | Allies destroyed C-40 Crusher 7133 | -7/Waste | Spotted C-40 Crusher 7160 | -7/Waste | Allies destroyed C-40 Crusher 7166 | -7/Waste | Allies destroyed C-40 Crusher 7174 | -7/Waste | Destroyed C-40 Crusher 7218 | -7/Waste | Spotted C-40 Crusher 7226 | -7/Waste | Allies destroyed C-40 Crusher 7334 | -7/Waste | Build established: Commander-Skirmisher 7487 | -7/Waste | Discovered new exit (range 15) 7712 | -7/Waste | Warlord forces began an assault 8012 | -7/Waste | Identified exit to Factory 8022 | -7/Waste | Entered Factory 8022 | -7/Factory | Accompanied by 23 allies 8808 | -7/Factory | P-60 Hacker assimilated allied 1I-2M9(g) 8937 | -7/Factory | Fabricated Exp. Sensor Array (x1) 9043 | -7/Factory | Build established: Skirmisher 9078 | -7/Factory | Discovered new exit (range 14) 9407 | -7/Factory | Identified exit to Factory 9874 | -7/Factory | Discovered exit to Factory (range 6) 10022 | -7/Factory | First assault squad dispatched 10356 | -7/Factory | P-60 Hacker assimilated allied 07-HBY(m) 10441 | -7/Factory | Discovered new exit (range 4) 10453 | -7/Factory | Identified exit to Lower Caves 10463 | -7/Factory | Entered Lower Caves 10661 | -7/Lower Caves | Build established: Scavenger-Skirmisher 11026 | -7/Lower Caves | Encountered a Warlord checkpoint 12033 | -7/Lower Caves | Discovered new exit (range 7) 12075 | -7/Lower Caves | Identified exit to Lower Caves 12377 | -7/Lower Caves | A Derelict revealed a hidden shortcut to a safe place 12381 | -7/Lower Caves | Identified exit to Zion 12700 | -7/Lower Caves | Entered another Lower Caves area 12727 | -7/Lower Caves | Learned location of 1 exit from Factory 13041 | -7/Lower Caves | Attracted the attention of an 0b10 outpost 13099 | -7/Lower Caves | Lost 3 parts (2n1u) 13106 | -7/Lower Caves | Destroyed 11 combat bots 13122 | -7/Lower Caves | Discovered exit to Factory (range 15) 13431 | -7/Lower Caves | Attracted the attention of an 0b10 checkpoint 13784 | -7/Lower Caves | Discovered exit to Zion (range 8) 14080 | -7/Lower Caves | Encountered a Warlord checkpoint 14645 | -7/Lower Caves | Entered Zion 14764 | -7/Zion | System corruption cleaned by Quarantine Array 14849 | -7/Zion | Discovered new exit (range 14) 15061 | -7/Zion | Gained Derelict followers 15882 | -7/Zion | Build established: Derelict-Skirmisher 16270 | -7/Zion | Identified exit to Proximity Caves 16272 | -7/Zion | Entered Proximity Caves 16272 | -6/Proximity Caves | Accompanied by 2 allies 17369 | -6/Proximity Caves | Learned Factory emergency access door positions 17486 | -6/Proximity Caves | Discovered exit to Factory (range 9) 17491 | -6/Proximity Caves | Learned Factory stockpile data 17981 | -6/Proximity Caves | Entered Factory 17981 | -6/Factory | Accompanied by 2 allies 17981 | -6/Factory | Evolved 2 slots: Propulsion x2 17982 | -6/Factory | Identified exit to Lower Caves 17983 | -6/Factory | Identified exit to Factory 18478 | -6/Factory | Spotted B-75 Beast 18528 | -6/Factory | Entered Lower Caves 18662 | -6/Lower Caves | Attracted the attention of an 0b10 outpost 18738 | -6/Lower Caves | Destroyed 7 combat bots 19026 | -6/Lower Caves | Build established: Scavenger-Skirmisher 19565 | -6/Lower Caves | Build established: Scavenger-Assassin 19873 | -6/Lower Caves | Learned 12 Factory zone layouts 19908 | -6/Lower Caves | Discovered new exit (range 7) 19960 | -6/Lower Caves | Found Prototype Device 19960 | -6/Lower Caves | Identified Heart of Steel 20296 | -6/Lower Caves | Build established: Scavenger-Mutant 20899 | -6/Lower Caves | Identified exit to Lower Caves 20900 | -6/Lower Caves | Entered another Lower Caves area 20900 | -6/Lower Caves | Accompanied by 1 ally 20947 | -6/Lower Caves | Discovered exit to Factory (range 8) 21115 | -6/Lower Caves | Learned location of Extension (-4) 21115 | -6/Lower Caves | Learned location of 1 exit from Research 21115 | -6/Lower Caves | Learned 8 Research zone layouts 21115 | -6/Lower Caves | Learned Armory terminal intel 21115 | -6/Lower Caves | Learned Factory stockpile data 21115 | -6/Lower Caves | Learned Extension garrison access intel 21152 | -6/Lower Caves | Encountered a Warlord checkpoint 21216 | -6/Lower Caves | Build established: Scavenger-Assassin 21315 | -6/Lower Caves | Learned Factory stockpile data 21909 | -6/Lower Caves | Attracted the attention of an 0b10 checkpoint 21923 | -6/Lower Caves | Build established: Scavenger-Skirmisher 21968 | -6/Lower Caves | Attacked by a delusional Derelict stockpiling Unaware 22129 | -6/Lower Caves | Discovered new exit (range 9) 22149 | -6/Lower Caves | Identified exit to Data Miner 22862 | -6/Lower Caves | Destroyed YL-GQB(g) 22947 | -6/Lower Caves | Learned 4 Factory zone layouts 23057 | -6/Lower Caves | Build established: Scavenger-Mutant 23518 | -6/Lower Caves | Entered Data Miner 23518 | -6/Data Miner | Accompanied by 2 allies 23518 | -6/Data Miner | Discovered new exit (range 6) 23548 | -6/Data Miner | Met Data Miner 23575 | -6/Data Miner | Learned location of Section 7 (-2) 23575 | -6/Data Miner | Acquired the access code to Warlord's prototype stash 23600 | -6/Data Miner | Received God Mode back door access code from Data Miner 23635 | -6/Data Miner | Identified exit to Proximity Caves 23637 | -6/Data Miner | Entered Proximity Caves 23637 | -5/Proximity Caves | Accompanied by 2 allies 23712 | -5/Proximity Caves | Build established: Scavenger-Assassin 23884 | -5/Proximity Caves | Learned location of 1 exit from Upper Caves 24110 | -5/Proximity Caves | Escorted by Enhanced Grunt 24258 | -5/Proximity Caves | Spotted B-75 Beast 24272 | -5/Proximity Caves | Allies destroyed B-75 Beast 24380 | -5/Proximity Caves | Attracted the attention of an 0b10 outpost 24416 | -5/Proximity Caves | Destroyed 7 combat bots 24484 | -5/Proximity Caves | Build established: Scavenger-Skirmisher 24502 | -5/Proximity Caves | Attracted the attention of an 0b10 checkpoint 25343 | -5/Proximity Caves | Heart of Steel transformed into Warbot 25550 | -5/Proximity Caves | Entered Factory 25550 | -5/Factory | Accompanied by 2 allies (Warbot) 25550 | -5/Factory | Evolved 2 slots: Utility x2 25551 | -5/Factory | Identified exit to Upper Caves 25552 | -5/Factory | Identified exit to Factory 25667 | -5/Factory | Repaired Arm. Treads 25712 | -5/Factory | Repaired Gauss Rifle 25780 | -5/Factory | Build established: Scavenger-Mutant 25903 | -5/Factory | Garrison activated, responded to threat 26049 | -5/Factory | Found Powered Armor 26102 | -5/Factory | Incoming investigation squad redirected 26139 | -5/Factory | Spotted B-75 Beast 26150 | -5/Factory | First assault squad dispatched 26155 | -5/Factory | Allies destroyed B-75 Beast 26209 | -5/Factory | Build established: Scavenger-Gunner 26266 | -5/Factory | Garrison activated, responded to threat 26649 | -5/Factory | Entered Upper Caves 26650 | -5/Upper Caves | Identified exit to Upper Caves 27236 | -5/Upper Caves | Attracted the attention of an 0b10 outpost 27272 | -5/Upper Caves | Destroyed 9 combat bots 27278 | -5/Upper Caves | Lost 3 parts (1n1u1w) 27395 | -5/Upper Caves | Learned Factory interactive machine intel 27735 | -5/Upper Caves | Build established: Scavenger-Skirmisher 27735 | -5/Upper Caves | Attracted the attention of an 0b10 checkpoint 28483 | -5/Upper Caves | Entered another Upper Caves area 28483 | -5/Upper Caves | Accompanied by 2 allies 28487 | -5/Upper Caves | Learned 4 Factory zone layouts 28547 | -5/Upper Caves | Spotted B-75 Beast 28562 | -5/Upper Caves | Allies destroyed B-75 Beast 28728 | -5/Upper Caves | Discovered exit to Factory (range 8) 28959 | -5/Upper Caves | Attracted the attention of an 0b10 checkpoint 29035 | -5/Upper Caves | Lost 6 parts (1p3n2w) 29265 | -5/Upper Caves | Build established: Mutant 30336 | -5/Upper Caves | Discovered new exit (range 7) 30356 | -5/Upper Caves | Learned Factory trap positions 31010 | -5/Upper Caves | Encountered a Warlord checkpoint 31442 | -5/Upper Caves | Entered Warlord 31532 | -5/Warlord | System corruption cleaned by Quarantine Array 31776 | -5/Warlord | Met Warlord 31792 | -5/Warlord | Opened Warlord's prototype stash 31801 | -5/Warlord | Warlord's base attacked by MAIN.C 31804 | -5/Warlord | Found Exp. Targeting Computer 31831 | -5/Warlord | Found Prototype Device 31831 | -5/Warlord | Identified Exp. Focal Shield 31834 | -5/Warlord | Found Prototype Processor 31834 | -5/Warlord | Identified Exp. Armor Integrity Analyzer 32151 | -5/Warlord | Warlord forces counterattacked 32225 | -5/Warlord | Spotted Striker 32239 | -5/Warlord | Spotted Executioner 32301 | -5/Warlord | Spotted Striker 32301 | -5/Warlord | Spotted Striker 32320 | -5/Warlord | Destroyed Striker 32332 | -5/Warlord | Discovered new exit (range 15) 32334 | -5/Warlord | Found Corrupted Prototype Processor 32334 | -5/Warlord | Identified Exp. Core Analyzer 32335 | -5/Warlord | System corruption reached 10% 32359 | -5/Warlord | Entered Proximity Caves 32376 | -4/Proximity Caves | Build established: Scavenger-Gunner 32603 | -4/Proximity Caves | Attracted the attention of an 0b10 checkpoint 32889 | -4/Proximity Caves | Build established: Scavenger-Mutant 32948 | -4/Proximity Caves | Discovered exit to Factory (range 11) 32967 | -4/Proximity Caves | Entered Factory 32967 | -4/Factory | Evolved 2 slots: Power x1, Utility x1 32969 | -4/Factory | Loaded intel: 114 trap records 32971 | -4/Factory | Loaded intel: 53 interactive machine locations 33530 | -4/Factory | Discovered new exit (range 18) 33586 | -4/Factory | Identified exit to Extension 33589 | -4/Factory | Entered Extension 33972 | -4/Extension | Build established: Scavenger-Skirmisher 34020 | -4/Extension | Rescued a captive Derelict 34027 | -4/Extension | Rescued a captive Derelict 34103 | -4/Extension | Rescued a captive Derelict 34105 | -4/Extension | Rescued a captive Derelict 34410 | -4/Extension | Warlord forces began an assault 34501 | -4/Extension | Spotted B-86 Titan 34509 | -4/Extension | Destroyed B-86 Titan 34677 | -4/Extension | Rescued A7 34737 | -4/Extension | Build established: Scavenger-Gunner 34830 | -4/Extension | Rescued a captive Derelict 34830 | -4/Extension | Rescued a captive Derelict 34939 | -4/Extension | Incoming investigation squad redirected 35107 | -4/Extension | Rescued a captive Derelict 35111 | -4/Extension | Rescued a captive Derelict 35113 | -4/Extension | Rescued a captive Derelict 35166 | -4/Extension | Discovered new exit (range 10) 35167 | -4/Extension | Discovered new exit (range 6) 35199 | -4/Extension | Identified exit to Cetus 35205 | -4/Extension | Entered Cetus 35205 | -4/Cetus | Accompanied by 16 allies (A7) 35210 | -4/Cetus | Acquired a Cetus Manufacturing Module code from A7 35223 | -4/Cetus | Spotted Cetus Guard 35225 | -4/Cetus | Spotted Cetus Guard 35225 | -4/Cetus | Spotted Cetus Guard 35228 | -4/Cetus | Spotted Cetus Guard 35233 | -4/Cetus | Allies destroyed Cetus Guard 35236 | -4/Cetus | Allies destroyed Cetus Guard 35238 | -4/Cetus | Allies destroyed Cetus Guard 35243 | -4/Cetus | Allies destroyed Cetus Guard 35344 | -4/Cetus | Started Cetus Manufacturing Module 35369 | -4/Cetus | Manufactured an Enhanced Grunt 35394 | -4/Cetus | Manufactured an Enhanced Grunt 35419 | -4/Cetus | Manufactured an Enhanced Grunt 35444 | -4/Cetus | Manufactured an Enhanced Grunt 35461 | -4/Cetus | Escorted A7 to Cetus Mainframe 35469 | -4/Cetus | Manufactured an Enhanced Grunt 35741 | -4/Cetus | Discovered new exit (range 15) 35763 | -4/Cetus | Identified exit to Archives 35772 | -4/Cetus | Entered Archives 35772 | -4/Archives | Accompanied by 15 allies (A7) 35777 | -4/Archives | Received a hacking code to weaken MAIN.C 35948 | -4/Archives | Discovered new exit (range 14) 35963 | -4/Archives | Discovered new exit (range 19) 35978 | -4/Archives | Discovered new exit (range 17) 36006 | -4/Archives | Identified exit to Hub_04(d) 36020 | -4/Archives | Entered Hub_04(d) 36020 | -4/Hub_04(d) | Accompanied by 11 allies 36038 | -4/Hub_04(d) | Discovered new exit (range 18) 36065 | -4/Hub_04(d) | Discovered new exit (range 9) 36378 | -4/Hub_04(d) | Network Hub disabled 36399 | -4/Hub_04(d) | Spotted Lightning 36401 | -4/Hub_04(d) | Spotted Lightning 36404 | -4/Hub_04(d) | Spotted Lightning 36408 | -4/Hub_04(d) | Spotted Lightning 36408 | -4/Hub_04(d) | Spotted Lightning 36422 | -4/Hub_04(d) | Spotted Lightning 36448 | -4/Hub_04(d) | Destroyed Lightning 36457 | -4/Hub_04(d) | Destroyed Lightning 36473 | -4/Hub_04(d) | Self-destructed Last Messages --------------- 36458_ Penetrated by EMDS Slug. 36460_ Slug penetrates Lightning. 36461_ Penetrated by Slug. 36461_ Penetrated by EMDS Slug. 36461_ Imp. Treads destroyed. 36461_ EMDS Slug penetrates Lightning. 36464_ System corrupted: Adv. KE Penetrator jammed. 36464_ Slug penetrates Wall. 36464_ Slug penetrates Lightning. 36465_ Penetrated by EMDS Slug. 36467_ Penetrated by Slug. 36468_ Penetrated by EMDS Slug. 36470_ Slug penetrates Lightning. 36470_ Lightning suffers critical hit (Destroy). 36470_ Destroyed Prototype Device. 36471_ Penetrated by Slug. 36471_ Penetrated by EMDS Slug. 36472_ GGRTN #3HEXDKDL#%C9KR5A4JI3:4S&8GT2#O 36472_ Centrium Heavy Treads destroyed. 36472_ Penetrated by EMDS Slug. Map ----- +----------------------------------------------------+ | ?????????????????????????????????????????????????? | | ?????????????????????????????????????????????????? | | ?????????????????????????????????????????????????? | | ?????????????????????????????????????????????????? | | ?????????????????????????????????????????????????? | | ????????????????? ?????? ??? ???????????????????? | | ?????????????????????? ? ? ??????????????????????? | | ?????????????# ? ?#????? ??????????#????????????? | | ???????????##?#?#?#?# # ? ? ??????????????????? | | ????? ???? ? ? # #####??#??#??#????????????? | | ???????? ??? ?? ?? ?? ? ?? ?? ???????????? | | ???????# """" """" ?# ? ? ????????????????? | | ?????? #?"""" """? ?### #######?##?????????????? | | #???? # "?"? """???#?## ########### ? ?????????? | | ???? ??+ ""?" """? #?## # T ? ?#? ?#????????? | | #?? ? # ? #?## # """" # ??????????? | | ?#?#?###??""" ""?" ??### # ? """ ? ?? ???????? | | ??? ? #?""""?""""? #### #? ??"" " # #????????? | | ?"""? # """" ??"" ##?# # " "" # #????????? | | ?"""" ?? """" """" #?## # ? g ??? ??????? | | ?"""" # ? #### # # #? "?????? | | ?"?" ?#################ih# #? # "?? ??# | | ? #?######## ;;= # ? # #? "?" ??? | | """" ###?# # """ #;h]# # ?? ?? ?? # | | ?"""" ##### # ##!=% [ ! # ????#?#### | | """" #?###""""" #;=@# [ # #####? ??# | | ?""" ##### ##+###%!=!# / # ###### #?# | | ? ##### [[!![!]# # ###### ### | | ?"""? ###?# =!|hh%# # ####?####? | | """" #?### ##;;*;%*############# ## | | "?"" ?#####; "# # #[! # [! ## ## | | ???""? #####" "# #### [# !! # # ?"" | | #####" "###### !%# ! " " # !*=# """ | | """" ### " " ##### ==# " + %<=[+ """ | | ?""" ## " " ####; # " #!*!==# ""? | | ?"?" #""""" """"###; # "!=!%=# ? | | """" "" ;; # ##=!!## ? | | ?? ? "" ;# # ##=%%########## | | #?##?#""" ;# # ##########[**# | | ?#### " #################[%%#* | | #?#### " # # ! #%=%![= = | | ?#?#####" ### """ == """ /%%[/% | | ?#?#?#### ### =! =%=#%//*=% | | ??####### ### =! !%! #!!%#! | | ???###### " #####+###########%!!########## | | ?###??### ##### ###########=**## ![[ | | ######?###?############## !!!!!=%# ![[ " | | ?##??####### ####### = !%=!!# ![[ " | | ???##?###### """ + " " % / " % | | ##?###?##### ####+##### # ! =% | +----------------------------------------------------+ Best States ------------- Heat Dissipation 43 Coolant Potential 120 Energy Generation 41 Energy Capacity 540 Matter Stores 300 Matter Capacity 300 Sight Range 16 Robot Scan Range 20 Terrain Scan Range 20 Terrain Scan Density 210 Jamming Range 16 EM Shielding 2 Armor Coverage 3200 Resistance: EM 90 Weapon Cycling 20 Evasion (%) 40 Targeting Accuracy 12 Core Analysis 8 Armor Integrity Analysis 50 Recoil Reduction 6 Kinecelleration 40 Trap Extractor Capacity 6 Item Schematics ----------------- Huge Storage Unit | -10/Materials | Hacked Exp. Sensor Array | -8/Materials | Scanalyzed Humpback | -7/Factory | Scanalyzed Machine Analyzer | -7/Factory | Scanalyzed Hvy. Treads | -7/Factory | Scanalyzed Antimatter Reactor | -7/Factory | Scanalyzed Mak. Salvage Targeting Computer | -7/Zion | Archive Hvy. Machine Gun | -7/Zion | Archive Arm. Huge Wheel | -7/Zion | Archive Lgt. Angular Momentum Engine | -7/Zion | Archive Adv. ECM Suite | -7/Zion | Archive Coolant Injector | -7/Zion | Archive Hvy. Shock Bomb Launcher | -7/Zion | Archive Field Propulsion Drive | -7/Zion | Archive Gauss Rifle | -7/Zion | Archive 0b10 Decoder Chip [Looter] | -7/Zion | Archive Hvy. Flak Cannon | -7/Zion | Archive Matter Filter | -7/Zion | Archive Imp. Target Analyzer | -7/Zion | Archive Phase Cannon | -7/Zion | Archive Greatsword | -7/Zion | Archive Combat Drone Bay | -6/Data Miner | Free Lgt. Regenerative Plating | -6/Data Miner | Free Cld. Gravmag System | -6/Data Miner | Free Exp. Heat Sink | -6/Data Miner | Free Tesla Bomb Launcher | -6/Data Miner | Free Adv. Medium Treads | -6/Data Miner | Free Imp. System Guard | -6/Data Miner | Free Biometal Leg | -6/Data Miner | Free Adv. Remote Datajack | -6/Data Miner | Free Adv. Concussive RPG | -6/Data Miner | Free Hyp. Gauss Rifle | -4/Factory | Scanalyzed Prc. Rocket Launcher | -4/Factory | Scanalyzed Robot Schematics ------------------ M-14 Sweeper | -7/Zion | Archive G-47 Trooper | -7/Zion | Archive B-36 Bruiser | -7/Zion | Archive G-73 Enforcer | -7/Zion | Archive L-41 Fighter | -6/Data Miner | Free G-50 Soldier | -6/Data Miner | Free S-27 Virus | -6/Data Miner | Free I-47 Archangel | -6/Data Miner | Free A-27 Freighter | -6/Data Miner | Free W-44 Eye | -6/Data Miner | Free Fabricated ------------ Exp. Sensor Array | x1 | -7/Factory Alien Tech Used ----------------- None Achievements -------------- None Challenges ------------ None Game ------ Seed MachineSurveybotCutter Manual? 0 Play Time 02:11:10 Cumulative 245.0 hours Start 2022.05.04 @ 03:19:39 End 2022.07.10 @ 10:33:33 Sessions 5 Manual Loads 0 Difficulty Rogue Special Mode None Game No. 350 Rogue 328 Adventurer 4 Explorer 18 Win Type - Total 10 Types 8/0/0/2/0/0/0/0/0 Lore% 70 Gallery% 88 Achievement% 72 Wizard Run 0 Options --------- ASCII 0 Keyboard 1 Movement Numpad Keybinds 0 Fullscreen 1 Font 18/SmallcapsGlow Map View 76x50 Tactical HUD 1 Map Filters NONE Filters NONE Steam 1 RUN: b2621777-8d57-4211-a35f-65025a5588c2